bitfinex/quotes_ETHUSD_20240716
["timestamp","ask_amount","ask_price","bid_price","bid_amount"]
[1721168423292,0.6018774,3435.1,3435.0,2.9112]
[1721168423495,0.6018774,3435.1,3434.0,0.55]
[1721168423496,0.6018774,3435.1,3434.2,2.91186]
[1721168423796,0.60443495,3435.0,3434.8,2.91131]
[1721168424191,0.60443495,3435.1,3434.8,2.91131]
[1721168424619,0.60443495,3435.1,3434.9,2.91123]
[1721168425886,0.68037977,3435.1,3434.9,2.91123]
[1721168426086,0.60443495,3435.1,3434.9,2.91123]
[1721168426294,0.60443495,3435.1,3434.3,0.346186]
[1721168426500,0.68037938,3435.0,3434.5,2.91161]
[1721168426699,0.68037938,3434.9,3434.5,2.91161]
[1721168426910,0.60443495,3434.9,3434.5,2.91161]
[1721168427103,0.60443495,3434.9,3434.6,2.91152]
[1721168427310,0.97876622,3435.1,3434.8,2.91132]
[1721168427311,0.60443495,3435.0,3434.8,2.91132]
[1721168427627,0.68038243,3435.0,3434.8,2.91132]
[1721168427927,0.60443495,3435.0,3434.6,2.91149]
[1721168428103,2.4734,3434.9,3433.9,3.291206]
[1721168428283,0.60443495,3434.7,3434.2,2.91187]
[1721168428482,0.68038557,3434.6,3434.2,2.91187]
[1721168428688,0.60443495,3434.6,3434.2,2.91187]
[1721168429740,0.60443495,3434.7,3434.5,2.91163]
[1721168430028,0.60443495,3434.9,3434.7,2.91146]
[1721168430332,0.60443495,3434.8,3434.7,2.91146]
[1721168430532,0.60443495,3434.9,3434.8,2.91137]
[1721168430835,0.07594925,3434.9,3434.8,2.91137]
[1721168431411,0.60485808,3434.9,3434.8,2.91137]
[1721168431613,0.68080733,3434.9,3434.8,2.91137]
[1721168431937,0.68080733,3434.9,3434.8,3.551883]
[1721168432443,0.07594925,3434.9,3434.8,3.551883]
[1721168433038,0.68080733,3434.9,3434.8,3.551883]
[1721168433196,0.60485808,3435.0,3434.9,2.91129]
[1721168433637,0.60485808,3435.0,3434.9,5.82258]
[1721168433808,0.68080289,3435.0,3434.9,6.4688893]
[1721168434010,0.60485808,3435.0,3434.9,6.4688893]
[1721168434414,0.68078913,3435.0,3434.9,6.4688893]
[1721168435316,0.07594481,3435.0,3434.9,6.4688893]
[1721168435518,0.68078913,3435.0,3434.9,6.4688893]
[1721168435721,0.07594481,3435.0,3434.9,6.4688893]
[1721168436023,0.68078913,3435.0,3434.9,3.5575993]
[1721168436229,0.68078913,3435.0,3434.9,2.91129]
[1721168436230,0.07594481,3435.0,3434.9,2.91129]
[1721168436745,0.60484432,3435.0,3434.9,2.91129]
[1721168436915,0.07594405,3435.0,3434.9,5.82258]
[1721168437720,0.07594405,3435.0,3434.9,2.91129]
[1721168438039,0.68078837,3435.0,3434.9,5.82258]
[1721168438261,0.07594405,3435.0,3434.9,6.404838]
[1721168438537,0.68078837,3435.0,3434.9,6.404838]
[1721168438743,0.68078837,3435.0,3434.3,7.37]
[1721168438744,0.97876015,3435.0,3434.3,7.37]
[1721168439038,0.60469078,3434.4,3434.3,7.37]
[1721168439200,0.60469078,3434.4,3433.6,2.91235]
[1721168439201,4.1155448,3434.4,3433.7,2.9123]
[1721168439403,0.60462052,3434.0,3433.7,2.9123]
[1721168439611,0.60462052,3434.1,3433.7,3.494765]
[1721168439846,0.68058383,3434.1,3433.9,2.91211]
[1721168440067,0.60462052,3434.2,3433.9,2.91211]
[1721168440414,0.90693079,3434.3,3433.9,2.91211]
[1721168440415,0.60462052,3434.1,3433.9,2.91211]
[1721168440857,0.60462052,3434.1,3434.0,2.91205]
[1721168441217,0.60462052,3434.1,3433.7,2.91226]
[1721168441447,0.90693079,3434.2,3433.9,2.91213]
[1721168441448,0.68075096,3434.0,3433.9,2.91213]
[1721168441656,0.60478726,3434.0,3433.9,2.91213]
[1721168441947,0.60478726,3434.0,3433.7,2.91226]
[1721168441948,0.0759637,3434.0,3433.4,2.91256]
[1721168442159,0.68080215,3433.9,3433.6,2.91233]
[1721168442452,0.07596983,3433.8,3433.7,2.9123]
[1721168442617,0.07596983,3433.8,3433.5,3.203666]
[1721168442818,0.60483845,3433.8,3433.1,10.28277]
[1721168443065,0.60483845,3433.6,3433.1,10.28277]
[1721168443369,0.60483845,3433.4,3433.1,2.91277]
[1721168443516,0.68081213,3433.3,3433.1,2.91277]
[1721168443714,0.60483845,3433.4,3433.1,2.91277]
[1721168444210,0.60483845,3433.4,3433.0,2.91286]
[1721168444410,0.60483845,3433.3,3433.0,2.91286]
[1721168444647,0.60483845,3433.3,3432.8,2.913]
[1721168444892,0.60483845,3433.4,3433.1,2.91277]
[1721168445259,0.60483845,3433.5,3433.1,2.91277]
[1721168445461,0.68081759,3433.4,3433.2,2.91272]
[1721168445771,0.60483845,3433.4,3433.2,2.91272]
[1721168445983,0.60483845,3433.5,3433.4,2.91256]
[1721168446180,0.07597611,3433.5,3433.4,2.91256]
[1721168446893,0.60483845,3433.6,3433.4,2.91256]
[1721168447189,0.60483845,3433.8,3433.6,2.91239]
[1721168447397,0.60483845,3433.8,3433.7,2.91231]
[1721168447561,0.68080697,3433.8,3433.7,2.91231]
[1721168448367,0.60483845,3434.0,3433.9,2.91214]
[1721168448715,0.60480327,3434.3,3434.2,2.91188]
[1721168448866,0.60480327,3434.4,3434.2,2.91188]
[1721168449406,0.60480327,3434.6,3434.5,2.91163]
[1721168449709,0.07595283,3434.6,3434.5,2.91163]
[1721168449870,0.98288362,3434.6,3434.5,2.91163]
[1721168450067,0.07595283,3434.6,3434.5,2.91163]
[1721168450306,0.90693079,3434.6,3434.5,2.91163]
[1721168450812,0.68093522,3434.6,3434.5,2.91163]
[1721168451424,0.07595283,3434.6,3434.5,2.91163]
[1721168451711,0.98288362,3434.6,3434.5,2.91163]
[1721168451913,0.98288362,3434.6,3434.3,2.9118]
[1721168452066,0.60505838,3434.4,3434.3,2.9118]
[1721168452482,0.68101724,3434.4,3434.1,2.91193]
[1721168452678,0.07595886,3434.3,3434.1,2.91193]
[1721168452892,0.68101758,3434.3,3434.1,3.494336]
[1721168453094,0.60505872,3434.3,3434.1,3.494336]
[1721168453619,0.60505872,3434.3,3434.2,2.91188]
[1721168453772,0.60505872,3434.5,3434.4,2.91171]
[1721168453974,0.68101195,3434.5,3434.4,2.91171]
[1721168454481,0.07595323,3434.5,3434.4,2.91171]
[1721168454680,0.60505872,3434.6,3434.5,2.91163]
[1721168455113,0.07595269,3434.6,3434.5,2.91163]
[1721168455409,0.07595269,3434.6,3434.5,6.405594]
[1721168455632,0.60507956,3434.8,3434.6,2.91154]
[1721168455772,2.11617184,3435.1,3434.9,2.91129]
[1721168455973,0.60515189,3435.1,3435.0,2.9112]
[1721168456408,0.60515189,3435.2,3435.1,2.91112]
[1721168456606,0.90693079,3435.2,3435.1,2.91112]
[1721168457045,0.90693079,3435.3,3435.2,2.91103]
[1721168457313,0.98359171,3435.3,3435.2,2.91103]
[1721168458580,0.90765011,3435.3,3435.2,2.91103]
[1721168458877,0.98358959,3435.3,3435.2,2.91103]
[1721168459613,0.07593948,3435.3,3435.2,2.91103]
[1721168459978,0.98358959,3435.3,3435.2,2.91103]
[1721168460776,0.98358959,3435.3,3435.0,2.91118]
[1721168461016,0.98358959,3435.3,3434.6,2.91154]
[1721168461017,3.89463959,3435.2,3434.6,2.91154]
[1721168461324,0.60488596,3434.8,3434.6,2.91154]
[1721168461610,0.90732894,3434.9,3434.6,2.91154]
[1721168461611,0.68082544,3434.7,3434.6,2.91154]
[1721168461815,0.68083829,3434.7,3434.6,2.91154]
[1721168462020,0.68083884,3434.7,3434.6,2.91154]
[1721168462221,0.07595288,3434.7,3434.6,2.91154]
[1721168462516,0.07595288,3434.7,3434.3,10.28175]
[1721168462718,0.68083858,3434.7,3434.3,10.28175]
[1721168462925,0.60488596,3434.5,3434.3,10.28175]
[1721168463092,0.60488596,3434.5,3434.4,2.91171]
[1721168463339,0.60488596,3434.8,3434.5,2.91163]
[1721168464023,0.6808362,3434.7,3434.6,5.82308]
[1721168464222,0.60488596,3434.9,3434.8,2.91137]
[1721168464619,0.680834,3434.9,3434.8,2.91137]
[1721168464821,0.60488596,3434.9,3434.8,2.91137]
[1721168465173,0.68082943,3434.9,3434.8,2.91137]
[1721168465521,0.98327241,3434.9,3434.3,7.37]
[1721168465860,0.68089014,3434.8,3434.4,2.5692406]
[1721168466014,0.68089014,3434.8,3434.7,2.91146]
[1721168466015,0.60494667,3434.8,3434.7,2.91146]
[1721168466224,0.60494667,3434.9,3434.8,2.91137]
[1721168466424,0.68089252,3434.9,3434.8,2.91137]
[1721168467139,0.07594585,3434.9,3434.8,2.91137]
[1721168467335,0.60494667,3435.0,3434.8,2.91137]
[1721168467336,0.60494667,3435.0,3434.9,2.91129]
[1721168468232,0.07594429,3435.0,3434.9,2.91129]
[1721168468441,0.90732894,3435.0,3434.9,2.91129]
[1721168468642,0.07594429,3435.0,3434.9,2.91129]
[1721168468839,0.98327323,3435.0,3434.9,2.91129]
[1721168469361,0.07594429,3435.0,3434.9,2.91129]
[1721168469564,0.90732894,3435.1,3434.9,2.91129]
[1721168469746,1.64358664,3435.2,3434.9,2.91129]
[1721168469747,0.98327323,3435.0,3434.9,2.91129]
[1721168469963,0.07594429,3435.0,3434.9,2.91129]
[1721168470265,0.90732894,3435.0,3434.9,2.91129]
[1721168470562,0.98327323,3435.0,3434.9,2.91129]
[1721168470944,0.07594429,3435.0,3434.9,2.91129]
[1721168471152,0.90732894,3435.1,3434.9,2.91129]
[1721168471836,0.6811094,3435.0,3434.9,3.493565]
[1721168472161,0.60515085,3435.2,3435.0,2.9112]
[1721168472349,0.07593977,3435.1,3435.0,2.9112]
[1721168472547,0.90732894,3435.1,3435.0,2.9112]
[1721168472722,0.90732894,3435.1,3434.9,2.91127]
[1721168472922,0.90732894,3435.1,3435.0,2.9112]
[1721168473743,1.51286486,3435.4,3435.1,2.91112]
[1721168473744,0.90732894,3435.2,3435.1,2.91112]
[1721168474259,0.90732894,3435.3,3435.2,2.91103]
[1721168474460,0.90732894,3435.4,3435.2,3.493253]
[1721168474658,0.60522633,3435.8,3435.7,2.91061]
[1721168474877,0.90732894,3436.0,3435.9,2.91044]
[1721168475022,0.0759215,3436.0,3435.9,2.91044]
[1721168475223,0.0759215,3436.0,3435.9,3.492537]
[1721168475422,0.6810105,3436.0,3435.9,3.492537]
[1721168475864,0.0759215,3436.0,3435.9,3.492537]
[1721168476264,0.605089,3436.1,3435.9,0.582097]
[1721168476434,0.605089,3436.1,3435.5,2.91073]
[1721168476435,0.6810102,3436.0,3435.5,2.91073]
[1721168476637,0.60489227,3435.9,3435.6,2.91067]
[1721168476948,0.0759212,3435.8,3435.6,2.91067]
[1721168477146,0.60489227,3435.9,3435.8,2.91053]
[1721168477366,0.60489227,3436.0,3435.9,2.91044]
[1721168477669,0.90732894,3436.2,3436.1,2.91027]
[1721168477670,0.60489227,3436.2,3436.1,2.91027]
[1721168478164,0.68081122,3436.2,3436.1,2.91027]
[1721168479031,0.68081122,3436.2,3435.9,2.91037]
[1721168479226,0.68081122,3436.1,3435.9,2.91037]
[1721168479452,0.07592262,3436.0,3435.9,2.91037]
[1721168479662,0.07592262,3436.0,3435.7,2.91055]
[1721168479962,0.60489227,3436.0,3435.7,2.91055]
[1721168480125,0.07592489,3435.9,3435.7,2.91055]
[1721168480327,0.60489227,3436.0,3435.7,2.91055]
[1721168480570,0.07592647,3435.9,3435.7,2.9106]
[1721168480753,0.60489227,3435.9,3435.2,2.911]
[1721168481069,0.6808217,3435.8,3435.5,2.91077]
[1721168481225,0.60489227,3435.8,3435.5,2.91077]
[1721168481639,0.60489227,3435.8,3435.2,1.55802]
[1721168481841,0.07593093,3435.7,3435.2,4.46899]
[1721168482087,0.60489227,3435.8,3435.2,4.46899]
[1721168482269,0.07593337,3435.7,3435.2,4.46899]
[1721168482476,0.60489227,3435.8,3435.2,4.46899]
[1721168482769,0.07593335,3435.7,3435.2,2.91097]
[1721168483059,0.68082745,3435.7,3435.2,2.91097]
[1721168483262,0.60489227,3435.7,3435.2,2.91097]
[1721168483630,0.07593506,3435.6,3435.2,2.91097]
[1721168483833,3.51555227,3435.7,3434.7,7.37]
[1721168484030,3.51555227,3435.7,3434.6,5.8215]
[1721168484031,2.91088,3435.4,3434.6,5.82148]
[1721168484386,0.60489227,3435.2,3434.7,2.91141]
[1721168484668,0.98327246,3435.3,3434.7,2.91141]
[1721168484669,0.60489227,3435.3,3434.7,2.91139]
[1721168484831,0.60489227,3435.3,3434.6,2.91]
[1721168484832,0.60489227,3435.5,3435.0,2.91113]
[1721168485163,0.60489227,3435.5,3435.1,2.9111]
[1721168485328,0.68082993,3435.4,3435.1,2.9111]
[1721168485530,0.07594143,3435.3,3435.1,2.91108]
[1721168485727,0.60489227,3435.4,3435.1,2.91108]
[1721168486155,0.07594122,3435.3,3435.1,2.91108]
[1721168486364,0.60489227,3435.6,3435.2,2.91102]
[1721168486575,0.60489227,3435.6,3435.1,0.582233]
[1721168486576,0.60489227,3435.6,3435.4,2.91079]
[1721168486756,0.60489227,3435.9,3435.4,2.91079]
[1721168486954,0.07592778,3435.8,3435.5,3.201859]
[1721168487153,0.60489227,3435.9,3435.5,3.201859]
[1721168487483,0.60489227,3435.9,3435.6,2.91069]
[1721168487976,0.60489227,3435.9,3435.1,3.493283]
[1721168488128,0.60489227,3435.9,3434.8,10.28131]
[1721168488129,0.60489227,3435.6,3434.8,10.28131]
[1721168488330,0.60489227,3435.4,3434.8,7.37]
[1721168488555,0.60489227,3435.2,3434.8,7.37]
[1721168488765,0.60489227,3435.2,3434.8,10.28133]
[1721168488967,0.60489227,3435.2,3434.8,7.37]
[1721168489166,0.68083772,3435.1,3434.8,7.37]
[1721168489384,0.68083772,3435.0,3434.8,7.37]
[1721168489544,2.91117,3435.1,3434.1,2.91195]
[1721168489545,5.24979464,3434.9,3434.1,2.91195]
[1721168489868,5.24979464,3434.9,3433.8,10.28218]
[1721168489869,0.60431421,3434.6,3433.8,10.28218]
[1721168490030,0.07596033,3434.5,3433.8,10.28218]
[1721168490232,0.6802744,3434.5,3433.8,10.28218]
[1721168490458,0.6802744,3434.5,3433.9,1.028218]
[1721168490836,3.5919044,3434.5,3433.9,1.028218]
[1721168491036,0.07596019,3434.4,3433.9,3.940338]
[1721168491236,0.60431421,3434.4,3433.9,3.940338]
[1721168491486,0.60431421,3434.4,3434.1,2.91194]
[1721168491652,0.60431421,3434.6,3434.4,2.91171]
[1721168491855,0.90732894,3434.8,3434.3,2.91174]
[1721168491856,0.60431421,3434.7,3434.5,2.91162]
[1721168492180,1.20924105,3435.0,3434.6,2.91154]
[1721168492181,0.60431421,3434.9,3434.6,2.91154]
[1721168492335,0.60431421,3434.9,3434.4,2.91164]
[1721168492540,0.68026168,3434.8,3434.2,2.91182]
[1721168492735,0.60431421,3434.5,3434.1,2.91196]
[1721168492974,0.60431421,3434.5,3433.9,2.91213]
[1721168493147,0.60431421,3434.4,3433.9,2.91213]
[1721168493351,0.90732894,3434.5,3433.9,2.91213]
[1721168493352,0.68027541,3434.3,3433.9,2.91213]
[1721168493581,0.60431421,3434.3,3433.9,2.91213]
[1721168493966,0.90732894,3434.5,3433.9,2.91213]
[1721168493967,0.60431421,3434.4,3433.9,2.91213]
[1721168494139,0.90732894,3434.5,3433.9,2.91213]
[1721168494140,0.60431421,3434.3,3434.0,2.91204]
[1721168494343,0.60431421,3434.5,3434.2,2.91186]
[1721168494651,0.60431421,3434.5,3434.4,2.91171]
[1721168494851,0.68027058,3434.5,3434.4,2.91171]
[1721168495044,0.60431421,3434.5,3434.4,2.91171]
[1721168495342,0.60431421,3434.7,3434.5,2.91163]
[1721168496247,0.68026627,3434.6,3434.5,2.91163]
[1721168496753,0.60431421,3434.7,3434.5,2.91163]
[1721168496952,0.68026434,3434.7,3434.5,2.91163]
[1721168497153,0.68026434,3434.6,3434.5,2.91163]
[1721168497450,0.98327907,3434.6,3434.4,2.91166]
[1721168497764,0.68129771,3434.5,3434.4,2.91166]
[1721168498061,0.60534758,3434.7,3434.6,2.91154]
[1721168498475,0.98327797,3434.8,3434.6,2.91154]
[1721168498683,0.07594903,3434.7,3434.6,2.91154]
[1721168498842,0.90732894,3434.8,3434.6,2.91154]
[1721168499038,0.90732894,3434.8,3434.7,2.91146]
[1721168499888,0.35880609,3434.8,3434.7,2.91146]
[1721168500055,0.07595287,3434.8,3434.7,2.91146]
[1721168500241,1.20924105,3434.9,3434.7,2.91146]
[1721168500644,0.43475896,3434.8,3434.5,5.82319]
[1721168500871,0.98429644,3434.7,3434.5,5.82319]
[1721168501070,0.07595287,3434.6,3434.5,2.91156]
[1721168501270,0.90834357,3434.7,3434.5,2.91156]
[1721168501482,0.07595287,3434.6,3434.5,2.91156]
[1721168501659,0.98429644,3434.6,3434.3,2.91178]
[1721168501857,0.60552844,3434.4,3434.2,2.91188]
[1721168502104,0.90834357,3434.6,3434.4,2.91171]
[1721168502393,0.60552393,3434.5,3434.4,2.91171]
[1721168502590,0.07595619,3434.5,3434.4,2.91171]
[1721168503189,0.90834357,3434.6,3434.4,2.91171]
[1721168503346,0.60545165,3434.5,3434.4,2.91171]
[1721168503549,0.68140784,3434.5,3434.4,2.91171]
[1721168503748,0.68140784,3434.5,3434.4,3.5231878]
[1721168503991,0.60545165,3434.6,3434.5,2.91163]
[1721168504283,0.60544903,3434.6,3434.5,2.91163]
[1721168504490,0.68140133,3434.6,3434.5,2.91163]
[1721168504658,0.60544903,3434.6,3434.5,2.91163]
[1721168504985,0.68140133,3434.6,3434.5,2.91163]
[1721168505409,0.07595291,3434.6,3434.5,2.91163]
[1721168505888,0.68140194,3434.6,3434.5,2.91163]
[1721168506082,0.07595291,3434.6,3434.5,2.91163]
[1721168506474,0.68140194,3434.6,3434.5,2.91163]
[1721168506886,0.07595291,3434.6,3434.5,2.91163]
[1721168507258,0.60544903,3434.6,3434.5,2.91163]
[1721168508084,0.07595291,3434.6,3434.5,3.58423858]
[1721168508249,0.60544903,3434.7,3434.6,5.82308]
[1721168508476,0.60544903,3435.2,3435.1,2.91112]
[1721168508668,0.60544903,3435.2,3435.1,5.82224]
[1721168508874,0.60544903,3435.4,3435.1,0.55]
[1721168509094,0.60544903,3435.4,3435.2,0.346125]
[1721168509273,0.60544903,3435.4,3435.3,2.91095]
[1721168509475,0.98427645,3435.4,3435.2,2.911]
[1721168509724,0.9842624,3435.3,3435.2,2.911]
[1721168510308,0.90832952,3435.3,3435.2,2.911]
[1721168510683,0.90832952,3435.4,3435.3,2.91095]
[1721168511313,0.68154673,3435.4,3435.3,6.404095]
[1721168511495,0.07593701,3435.4,3435.3,6.404095]
[1721168511671,0.90832952,3435.5,3435.4,2.91086]
[1721168511873,0.90832952,3435.6,3435.5,2.91078]
[1721168512792,0.98426287,3435.6,3435.5,2.91078]
[1721168512972,0.90832952,3435.6,3435.5,2.91078]
[1721168513615,0.90832952,3435.7,3435.6,2.91069]
[1721168513775,0.07593255,3435.7,3435.6,2.91069]
[1721168514322,0.60555468,3435.7,3435.6,2.91069]
[1721168514815,0.07593255,3435.7,3435.6,2.91069]
[1721168514976,0.90832952,3435.8,3435.6,2.91069]
[1721168515311,0.98425853,3435.8,3435.6,2.91069]
[1721168515512,0.07592901,3435.7,3435.6,2.91069]
[1721168515677,0.07592901,3435.7,3435.6,3.55687035]
[1721168515877,0.07592901,3435.7,3435.6,2.91069]
[1721168516085,0.98425853,3435.7,3435.3,2.91092]
[1721168516424,0.60549519,3435.5,3435.3,2.91092]
[1721168516718,0.07593295,3435.4,3435.3,2.91092]
[1721168516918,0.07593295,3435.4,3435.3,5.82187]
[1721168517234,0.60549519,3435.6,3435.5,2.91078]
[1721168517514,0.90832952,3435.7,3435.6,2.91069]
[1721168517902,0.98425955,3435.7,3435.6,2.91069]
[1721168518118,0.07593003,3435.7,3435.6,2.91069]
[1721168518316,0.98425901,3435.7,3435.3,2.91092]
[1721168518620,0.60542461,3435.5,3435.4,2.91086]
[1721168518817,0.07592949,3435.5,3435.4,2.91086]
[1721168520407,0.98425901,3435.5,3434.9,10.28127]
[1721168520609,0.60545931,3435.3,3435.1,2.91107]
[1721168520782,0.60545931,3435.3,3435.1,2.91106]
[1721168521119,0.60545931,3435.3,3434.9,11.309377]
[1721168521120,0.68139908,3435.2,3434.9,10.28125]
[1721168521423,0.90818896,3435.4,3434.9,7.37]
[1721168521424,0.68140248,3435.1,3434.9,7.37]
[1721168521584,0.90818896,3435.1,3434.9,7.37]
[1721168522216,1.64390583,3435.2,3434.9,7.37]
[1721168522217,0.98413213,3435.0,3434.9,7.37]
[1721168522516,0.07594317,3435.0,3434.9,7.37]
[1721168522725,0.31577171,3435.0,3434.9,7.37]
[1721168522920,0.4347303,3435.0,3434.9,7.37]
[1721168523130,1.51374577,3435.1,3434.9,7.37]
[1721168523285,1.21121497,3435.0,3434.9,7.37]
[1721168523615,0.4347303,3435.0,3434.9,7.37]
[1721168524020,1.64614228,3435.0,3434.9,7.37]
[1721168524388,1.64614771,3435.0,3434.9,7.37]
[1721168524639,0.0759486,3435.0,3434.9,7.37]
[1721168524921,1.57019911,3435.0,3434.9,7.37]
[1721168525231,1.21141198,3435.0,3434.8,2.91137]
[1721168525432,0.9848963,3434.9,3434.8,2.91137]
[1721168525723,0.43495205,3434.9,3434.8,2.91137]
[1721168525893,0.0759486,3434.9,3434.8,2.91137]
[1721168526315,0.98489302,3434.9,3434.8,2.91137]
[1721168526629,0.90894442,3434.9,3434.8,2.91137]
[1721168526982,0.98489302,3434.9,3434.8,2.91137]
[1721168527199,0.90894442,3434.9,3434.8,3.49365]
[1721168527521,0.90894442,3434.9,3434.8,2.91137]
[1721168531189,1.64660047,3434.9,3434.8,2.91137]
[1721168531707,1.64660047,3434.9,3434.3,7.37]
[1721168531929,0.60642004,3434.4,3434.3,2.9118]
[1721168532090,0.6823659,3434.4,3434.3,2.9118]
[1721168532294,0.90963006,3434.5,3434.3,2.9118]
[1721168532818,0.98557592,3434.5,3434.3,2.9118]
[1721168533135,0.60664945,3434.4,3434.3,2.9118]
[1721168533355,0.07594586,3434.4,3433.9,3.5299927]
[1721168533493,0.60670747,3434.1,3433.8,2.91214]
[1721168533694,0.6067056,3434.0,3433.8,2.91214]
[1721168533889,0.68267025,3433.9,3433.8,2.91214]
[1721168534500,0.6067056,3433.9,3433.8,2.91214]
[1721168535921,0.6067056,3433.9,3433.2,15.69627]
[1721168535922,0.6067056,3433.9,3433.2,10.37]
[1721168536127,0.6067056,3433.9,3433.2,7.37]
[1721168536128,0.6067056,3433.6,3433.2,7.37]
[1721168536313,0.6067056,3433.6,3432.9,0.45659108]
[1721168536314,0.6067056,3433.3,3432.9,0.45659108]
[1721168536513,0.68267025,3433.2,3432.9,0.45659108]
[1721168536740,0.6067056,3433.2,3433.0,2.9129]
[1721168537334,0.6067056,3433.3,3433.0,2.9129]
[1721168537735,0.6067056,3433.4,3433.0,2.9129]
[1721168537948,0.6067056,3433.4,3433.1,2.9128]
[1721168538105,0.6067056,3433.5,3433.1,2.9128]
[1721168538300,0.6067056,3433.6,3433.1,2.9128]
[1721168538838,0.6067056,3433.7,3433.3,2.91257]
[1721168539040,1.21141198,3434.0,3433.1,2.9128]
[1721168539041,0.6067056,3433.6,3433.1,2.9128]
[1721168539238,0.6067056,3433.6,3432.9,2.91297]
[1721168539239,0.68268215,3433.5,3433.2,2.91272]
[1721168539449,0.07597655,3433.4,3432.5,3.0]
[1721168539675,0.68268215,3433.4,3432.6,1.30876716]
[1721168539859,0.6067056,3433.4,3432.6,1.30876716]
[1721168540173,0.6067056,3433.4,3432.9,2.91291]
[1721168540488,0.68268749,3433.3,3432.7,2.91309]
[1721168540644,0.6067056,3433.3,3432.8,3.0]
[1721168541264,0.6067056,3433.3,3432.6,4.22199716]
[1721168541265,0.68269445,3433.2,3432.6,4.22199716]
[1721168541434,0.6067056,3433.2,3432.6,4.22199716]
[1721168541929,0.07599176,3433.1,3432.6,2.91323]
[1721168542132,0.68269913,3433.1,3432.3,10.28349]
[1721168542369,2.91287,3433.1,3432.4,3.0]
[1721168542583,3.5195756,3433.1,3432.4,3.0]
[1721168542731,2.91287,3433.1,3432.4,5.91338]
[1721168542931,3.89309657,3433.1,3432.3,10.28349]
[1721168543283,3.89309657,3433.1,3432.1,2.91]
[1721168543284,2.91326,3432.6,3432.1,2.91]
[1721168543570,2.91326,3432.6,3431.8,7.37]
[1721168543571,2.9135,3432.3,3431.8,7.37]
[1721168544273,2.9135,3432.3,3431.7,2.914]
[1721168544274,2.91359,3432.2,3431.1,7.37]
[1721168544594,3.5201856,3432.4,3431.6,2.91402]
[1721168544889,2.91355,3432.3,3431.6,2.91402]
[1721168545028,2.91355,3432.3,3431.4,2.91426]
[1721168545570,2.91355,3432.3,3431.6,2.91407]
[1721168545778,2.91344,3432.4,3431.6,2.91407]
[1721168545924,2.91344,3432.4,3431.6,3.496903]
[1721168546643,2.9135,3432.3,3431.6,3.496903]
[1721168546850,2.9135,3432.3,3431.6,2.91407]
[1721168548632,2.9135,3432.3,3431.1,0.30413044]
[1721168548633,2.9135,3432.3,3431.5,2.91417]
[1721168549172,2.9135,3432.3,3428.9,3.40449322]
[1721168549173,2.9141,3431.6,3430.7,2.9148]
[1721168549329,3.746475,3431.5,3430.8,2.91475]
[1721168549531,3.746475,3431.5,3430.9,2.91467]
[1721168549829,2.91417,3431.5,3430.9,2.91467]
[1721168550750,2.91398,3431.8,3431.1,2.91449]
[1721168551379,2.91389,3431.9,3430.8,2.91475]
[1721168551380,2.91401,3431.7,3430.8,2.91475]
[1721168551558,2.91419,3431.5,3430.8,2.91475]
[1721168551871,2.91427,3431.4,3430.5,10.28498]
[1721168552264,2.91435,3431.3,3430.6,2.9149]
[1721168552631,2.91435,3431.3,3430.7,2.91485]
[1721168553326,2.91435,3431.3,3430.5,10.28498]
[1721168554077,2.91444,3431.2,3430.5,7.37]
[1721168554287,3.7961236,3431.2,3430.6,2.91493]
[1721168554872,3.7961236,3431.2,3430.5,7.37]
[1721168555039,2.91453,3431.1,3430.3,2.91518]
[1721168555752,2.91453,3431.1,3430.4,2.91507]
[1721168555950,3.7961236,3431.2,3430.5,2.91497]
[1721168555951,0.8816836,3431.2,3430.5,2.91497]
[1721168556280,2.4052,3431.3,3430.6,2.91489]
[1721168556434,2.91444,3431.2,3430.6,2.91489]
[1721168561101,2.91444,3431.2,3430.1,3.0]
[1721168561102,2.91377,3432.0,3431.2,2.91442]
[1721168561447,2.9139,3431.9,3431.2,2.91442]
[1721168561670,3.725367,3431.9,3431.2,2.91442]
[1721168561850,2.91392,3431.8,3431.2,2.91442]
[1721168562052,2.91392,3431.8,3431.0,2.91454]
[1721168562242,0.811467,3431.9,3430.7,3.21859792]
[1721168562243,2.91424,3431.5,3430.7,2.91477]
[1721168562570,2.91424,3431.5,3430.2,2.8391]
[1721168562571,2.91417,3431.6,3430.8,2.91471]
[1721168562769,2.91396,3431.8,3431.0,2.91459]
[1721168563141,2.91401,3431.7,3431.0,2.91459]
[1721168563347,2.91396,3431.8,3431.0,2.91459]
[1721168563348,2.91396,3431.8,3431.1,2.91449]
[1721168563762,0.9134187,3431.8,3431.2,2.91438]
[1721168563960,2.495,3432.1,3431.2,2.91438]
[1721168564200,8.40869,3432.1,3431.4,2.91424]
[1721168564499,8.40869,3432.1,3431.2,2.91438]
[1721168564500,5.8276,3432.0,3431.2,2.91437]
[1721168564952,2.91377,3432.0,3431.2,2.91437]
[1721168565154,2.91385,3431.9,3431.2,2.91437]
[1721168565450,1.132262,3431.8,3431.2,2.91437]
[1721168565647,1.132262,3431.8,3431.1,2.91451]
[1721168566101,1.132262,3431.8,3431.2,2.91442]
[1721168566255,4.046222,3431.8,3431.0,2.91455]
[1721168566459,2.91402,3431.7,3431.0,2.91455]
[1721168566787,1.132262,3431.8,3431.2,2.91442]
[1721168567166,4.046192,3431.8,3431.2,2.91442]
[1721168567889,2.91414,3431.6,3431.0,2.91459]
[1721168568065,1.132262,3431.8,3431.0,2.91459]
[1721168568066,4.046232,3431.8,3431.1,2.91445]
[1721168569079,2.91401,3431.7,3430.9,2.91463]
[1721168569391,2.91401,3431.7,3430.6,7.37]
[1721168569392,2.91401,3431.7,3431.0,2.91453]
[1721168569751,1.132262,3431.8,3431.0,2.91453]
[1721168569957,1.132262,3431.8,3431.2,2.91442]
[1721168571057,2.91403,3431.7,3431.0,2.91453]
[1721168571276,2.91403,3431.7,3430.6,7.37]
[1721168571277,2.91445,3431.2,3430.6,7.37]
[1721168571597,2.91445,3431.2,3430.6,10.28493]
[1721168571983,2.91445,3431.2,3429.7,2.4658]